bitfinex-derivatives/quotes_SOLF0:USTF0_20260315
["timestamp","ask_amount","ask_price","bid_price","bid_amount"]
[1773616387404,7.95993819,92.65,92.557,52.91872143]
[1773616387405,63.48199316,92.637,92.557,52.91872143]
[1773616387599,73.19399316,92.637,92.56,9.72]
[1773616388006,63.48199316,92.637,92.557,52.91872143]
[1773616388217,63.48199316,92.637,92.541,33.94]
[1773616388218,63.48199316,92.602,92.52,9.725]
[1773616388511,63.48199316,92.602,92.515,52.29194253]
[1773616388512,63.48199316,92.6,92.515,52.29194253]
[1773616388706,63.48199316,92.597,92.517,52.26733432]
[1773616389106,63.48199316,92.597,92.506,86.15048011]
[1773616389311,63.48199316,92.557,92.487,52.21048011]
[1773616389910,63.48199316,92.557,92.488,9.728]
[1773616390110,9.721,92.558,92.487,52.21048011]
[1773616390111,63.48199316,92.55,92.487,52.21048011]
[1773616390317,63.48199316,92.55,92.467,53.71980035]
[1773616390506,7.95993819,92.56,92.467,53.71980035]
[1773616390507,63.48199316,92.548,92.467,53.71980035]
[1773616390704,33.94,92.549,92.459,33.94]
[1773616390705,63.48199316,92.535,92.459,33.94]
[1773616391114,63.48199316,92.535,92.465,52.40483193]
[1773616391315,63.48199316,92.559,92.465,52.40483193]
[1773616391511,63.48199316,92.558,92.465,52.40483193]
[1773616391710,63.48199316,92.558,92.489,51.91585923]
[1773616391907,63.48199316,92.558,92.48,7.95993819]
[1773616391908,63.48199316,92.558,92.491,51.86006679]
[1773616392114,63.48199316,92.558,92.461,51.86006679]
[1773616392410,63.48199316,92.554,92.463,55.37473339]
[1773616392811,63.48199316,92.538,92.463,55.37473339]
[1773616393005,63.48199316,92.536,92.463,55.37473339]
[1773616393411,9.723,92.533,92.447,33.94]
[1773616393720,63.48199316,92.519,92.447,33.94]
[1773616393913,63.48199316,92.519,92.431,60.68209833]
[1773616394105,10.00071631,92.639,92.45,7.95993819]
[1773616394106,63.48199316,92.549,92.45,7.95993819]
[1773616394309,63.48199316,92.549,92.471,60.68209833]
[1773616395512,63.48199316,92.549,92.473,65.56871157]
[1773616396516,33.96,92.557,92.473,65.56871157]
[1773616396517,73.20399316,92.546,92.473,55.83871157]
[1773616396812,63.48199316,92.546,92.46,7.95993819]
[1773616397113,63.48199316,92.546,92.461,55.00262769]
[1773616397812,63.48199316,92.546,92.432,1.88140651]
[1773616397813,63.48199316,92.544,92.463,54.83319189]
[1773616398423,63.48199316,92.541,92.463,54.83319189]
[1773616398911,63.48199316,92.536,92.463,54.83319189]
[1773616399713,63.48199316,92.536,92.467,58.16466808]
[1773616399913,63.48199316,92.536,92.446,48.26161076]
[1773616400222,63.48199316,92.532,92.453,48.26161076]
[1773616401513,63.48199316,92.532,92.455,46.68420233]
[1773616402721,63.48199316,92.532,92.457,44.90705315]
[1773616403117,63.48199316,92.532,92.458,44.74098782]
[1773616403518,63.48199316,92.532,92.47,9.73]
[1773616403922,19.432,92.604,92.47,9.73]
[1773616403923,63.86887345,92.552,92.47,7.95993819]
[1773616404121,63.86887345,92.552,92.472,43.97717084]
[1773616404717,63.86887345,92.552,92.473,33.96]
[1773616405023,63.86887345,92.552,92.474,43.9850505]
[1773616405215,63.86887345,92.552,92.481,9.729]
[1773616405420,63.86887345,92.552,92.432,1.88140651]
[1773616405421,63.86887345,92.572,92.491,43.93475251]
[1773616405621,63.86887345,92.572,92.493,43.93475251]
[1773616405818,63.86887345,92.59,92.511,43.93475251]
[1773616406021,63.86887345,92.59,92.513,43.77494729]
[1773616406321,63.86887345,92.59,92.519,9.725]
[1773616406523,63.86887345,92.59,92.513,43.77494729]
[1773616406719,63.86887345,92.59,92.515,43.84430609]
[1773616407122,63.86887345,92.59,92.501,33.94]
[1773616407720,63.86887345,92.59,92.502,43.57638125]
[1773616408622,63.86887345,92.59,92.393,9.45816014]
[1773616408623,63.86887345,92.574,92.493,9.727]
[1773616408817,63.86887345,92.572,92.482,42.50843464]
[1773616409017,63.86887345,92.556,92.482,52.23743464]
[1773616410425,63.86887345,92.554,92.461,42.36920068]
[1773616410624,63.86887345,92.552,92.463,42.36920068]
[1773616411626,63.86887345,92.552,92.45,8.00677675]
[1773616411627,63.86887345,92.552,92.464,53.8303232]
[1773616411825,63.86887345,92.552,92.464,44.0993232]
[1773616412028,63.86887345,92.552,92.465,33.94]
[1773616412227,63.86887345,92.548,92.466,43.95001608]
[1773616412430,63.86887345,92.548,92.471,43.56189175]
[1773616413426,63.86887345,92.57,92.471,43.56189175]
[1773616414023,63.86887345,92.546,92.483,9.729]
[1773616414630,19.431,92.609,92.47,8.00677675]
[1773616414631,63.86887345,92.565,92.493,42.09164239]
[1773616414821,63.86887345,92.565,92.494,42.09164239]
[1773616415630,33.94,92.584,92.481,33.94]
[1773616415631,63.86887345,92.561,92.481,33.94]
[1773616415826,19.43,92.615,92.455,42.8683185]
[1773616415827,63.86887345,92.549,92.455,42.8683185]
[1773616416027,63.86887345,92.547,92.455,42.8683185]
[1773616416231,63.86887345,92.533,92.46,9.731]
[1773616416727,63.86887345,92.529,92.46,9.731]
[1773616417532,63.86887345,92.529,92.461,41.72984257]
[1773616417734,63.86887345,92.529,92.462,41.72984257]
[1773616418134,63.86887345,92.529,92.479,9.729]
[1773616418929,33.94,92.547,92.462,75.66984257]
[1773616418930,33.94,92.547,92.488,9.728]
[1773616419129,63.86887345,92.551,92.481,41.46552013]
[1773616419734,63.86887345,92.551,92.497,9.727]
[1773616420137,63.86887345,92.551,92.481,75.40552013]
[1773616420337,33.94,92.565,92.487,9.728]
[1773616420338,63.86887345,92.548,92.487,9.728]
[1773616420739,63.86887345,92.548,92.46,41.15226177]
[1773616421639,63.86887345,92.534,92.464,9.73]
[1773616422037,63.86887345,92.534,92.46,41.15226177]
[1773616422237,63.86887345,92.53,92.473,9.73]
[1773616422438,63.86887345,92.53,92.46,41.15226177]
[1773616422832,63.86887345,92.528,92.463,9.731]
[1773616423032,63.86887345,92.528,92.46,41.15226177]
[1773616424034,63.86887345,92.521,92.462,9.731]
[1773616424437,63.86887345,92.521,92.43,8.00677675]
[1773616424438,63.86887345,92.521,92.421,40.05800773]
[1773616424739,63.86887345,92.499,92.432,40.05800773]
[1773616424935,19.441,92.562,92.432,40.05800773]
[1773616424936,63.86887345,92.523,92.432,40.05800773]
[1773616425140,63.86887345,92.519,92.443,39.93049663]
[1773616425532,19.434,92.594,92.445,39.6390096]
[1773616425533,63.86887345,92.537,92.445,39.6390096]
[1773616425732,63.86887345,92.533,92.467,9.73]
[1773616426739,63.86887345,92.53,92.467,9.73]
[1773616427542,63.86887345,92.528,92.456,9.731]
[1773616428237,63.86887345,92.526,92.456,9.731]
[1773616429143,63.86887345,92.523,92.449,33.94]
[1773616429342,63.86887345,92.523,92.445,39.6390096]
[1773616429538,63.86887345,92.516,92.439,9.733]
[1773616429744,63.86887345,92.514,92.429,37.65838736]
[1773616430442,63.86887345,92.514,92.449,9.732]
[1773616431247,63.86887345,92.514,92.459,9.731]
[1773616431441,63.86887345,92.514,92.447,37.07722256]
[1773616431640,63.86887345,92.531,92.449,37.07722256]
[1773616432040,63.86887345,92.531,92.448,33.94]
[1773616432041,60.2850251,92.552,92.471,36.99426759]
[1773616432341,60.2850251,92.552,92.473,36.99426759]
[1773616433141,60.2850251,92.552,92.477,36.72927675]
[1773616433537,60.2850251,92.552,92.491,9.728]
[1773616433736,60.2850251,92.552,92.479,33.94]
[1773616433937,60.2850251,92.552,92.47,9.45816014]
[1773616434137,60.2850251,92.552,92.467,33.94]
[1773616434138,60.2850251,92.552,92.468,9.45816014]
[1773616434343,61.35719354,92.539,92.469,9.73]
[1773616436245,61.35719354,92.534,92.469,9.73]
[1773616436846,61.35719354,92.534,92.469,9.45816014]
[1773616437043,61.35719354,92.534,92.464,71.50944001]
[1773616437241,61.35719354,92.534,92.464,80.96760015]
[1773616437642,61.35719354,92.534,92.469,9.73]
[1773616437846,61.35719354,92.534,92.464,71.50944001]
[1773616438350,61.35719354,92.534,92.465,37.5094874]
[1773616438547,61.35719354,92.534,92.468,37.5094874]
[1773616438753,33.94,92.553,92.478,37.5094874]
[1773616438948,61.35719354,92.555,92.495,9.727]
[1773616439350,61.35719354,92.555,92.481,37.5094874]
[1773616440253,61.35719354,92.553,92.481,47.2384874]
[1773616441646,61.35719354,92.549,92.481,47.2384874]
[1773616442846,61.35719354,92.549,92.492,9.728]
[1773616443051,61.35719354,92.549,92.481,37.5094874]
[1773616444556,61.35719354,92.549,92.484,9.728]
[1773616445449,61.35719354,92.546,92.484,9.728]
[1773616446355,61.35719354,92.534,92.473,9.73]
[1773616447354,61.35719354,92.531,92.473,9.73]
[1773616449355,33.94,92.556,92.474,36.62128054]
[1773616449555,61.35719354,92.555,92.476,46.07924366]
[1773616449858,61.35719354,92.555,92.476,36.62108352]
[1773616450660,61.35719354,92.545,92.481,9.729]
[1773616451762,61.35719354,92.545,92.482,36.09983991]
[1773616452362,61.35719354,92.545,92.482,45.55800005]
[1773616452559,61.35719354,92.545,92.48,9.45816014]
[1773616452863,61.35719354,92.545,92.476,43.39816014]
[1773616453064,61.35719354,92.545,92.476,33.94]
[1773616453260,61.35719354,92.541,92.48,9.729]
[1773616453656,61.35719354,92.539,92.468,9.45816014]
[1773616453869,61.35719354,92.537,92.468,36.83591861]
[1773616454171,61.35719354,92.537,92.469,36.74597787]
[1773616454375,61.35719354,92.537,92.469,46.20413801]
[1773616454669,61.35719354,92.537,92.453,33.94]
[1773616454670,61.35719354,92.537,92.47,37.01769435]
[1773616455665,61.35719354,92.537,92.453,33.94]
[1773616455666,61.35719354,92.537,92.478,46.29951728]
[1773616455861,61.35719354,92.537,92.479,9.45816014]
[1773616456065,61.35719354,92.537,92.487,9.45816014]
[1773616456263,61.35719354,92.557,92.488,46.08059484]
[1773616456465,61.35719354,92.557,92.489,36.58361169]
[1773616457067,61.35719354,92.557,92.513,9.725]
[1773616457768,61.35719354,92.557,92.522,9.724]
[1773616457963,61.35719354,92.557,92.502,9.45816014]
[1773616458476,61.35719354,92.557,92.51,9.726]
[1773616458863,95.29719354,92.576,92.503,9.45816014]
[1773616459070,61.35719354,92.576,92.506,45.34564751]
[1773616459368,61.35719354,92.576,92.506,35.88748737]
[1773616459572,61.35719354,92.572,92.504,9.45816014]
[1773616459775,61.35719354,92.572,92.488,35.94528069]
[1773616459776,61.35719354,92.572,92.499,9.45816014]
[1773616460565,61.35719354,92.567,92.507,9.726]
[1773616460771,61.35719354,92.567,92.494,9.45816014]
[1773616461270,9.72,92.562,92.504,9.726]
[1773616461470,61.35719354,92.561,92.494,35.58352625]
[1773616461677,61.35719354,92.561,92.489,35.58352625]
[1773616462075,57.40310973,92.557,92.495,9.727]
[1773616463070,57.40310973,92.557,92.505,9.726]
[1773616463467,57.40310973,92.557,92.514,9.725]
[1773616467074,57.40310973,92.574,92.523,9.724]
[1773616467376,57.40310973,92.604,92.53,29.32077111]
[1773616468264,67.11910973,92.604,92.54,9.723]
[1773616469671,57.40310973,92.604,92.53,29.32077111]
[1773616469876,57.40310973,92.604,92.538,27.66678754]
[1773616470066,57.40310973,92.604,92.543,27.48206999]
[1773616470270,57.40310973,92.625,92.563,27.48206999]
[1773616471473,57.40310973,92.625,92.576,9.719]
[1773616471671,57.40310973,92.645,92.577,27.32405821]
[1773616472174,57.40310973,92.645,92.595,9.717]
[1773616473576,57.40310973,92.645,92.577,27.32405821]
[1773616473577,57.40310973,92.645,92.584,9.718]
[1773616474275,57.40310973,92.645,92.55,9.45816014]
[1773616474276,57.40310973,92.643,92.561,33.94]
[1773616474868,57.40310973,92.63,92.572,9.719]
[1773616475572,57.40310973,92.63,92.575,9.719]
[1773616476776,33.94,92.643,92.584,9.718]
[1773616476777,91.34310973,92.643,92.584,9.718]
[1773616477079,57.40310973,92.643,92.584,37.13633972]
[1773616477269,57.40310973,92.643,92.565,33.94]
[1773616477472,57.40310973,92.643,92.561,33.94]
[1773616477978,57.40310973,92.632,92.564,9.72]
[1773616479469,57.40310973,92.62,92.564,9.72]
[1773616480474,57.40310973,92.618,92.559,33.94]
[1773616482681,57.40310973,92.618,92.56,9.72]
[1773616483678,33.94,92.637,92.56,9.72]
[1773616483679,57.40310973,92.616,92.56,9.72]
[1773616483880,57.40310973,92.616,92.559,33.94]
[1773616485679,57.40310973,92.614,92.559,33.94]
[1773616486177,9.715,92.609,92.559,33.94]
[1773616486383,67.11810973,92.609,92.559,33.94]
[1773616486977,57.40310973,92.609,92.559,43.661]
[1773616487576,57.40310973,92.609,92.559,33.94]
[1773616490692,57.40310973,92.606,92.559,33.94]
[1773616491990,57.40310973,92.606,92.56,3.35855988]
[1773616492991,57.40310973,92.606,92.564,9.72]
[1773616493382,58.04772758,92.624,92.57,3.35855988]
[1773616493888,58.04772758,92.624,92.57,27.32404341]
[1773616494089,58.04772758,92.636,92.58,3.35855988]
[1773616494288,58.04772758,92.636,92.59,3.35855988]
[1773616494489,58.04772758,92.653,92.6,3.35855988]
[1773616495291,58.04772758,92.67,92.62,3.35855988]
[1773616495490,61.40628746,92.67,92.61,3.35855988]
[1773616495990,58.04772758,92.658,92.6,13.07455988]
[1773616496193,58.04772758,92.649,92.598,33.94]
[1773616496595,58.04772758,92.649,92.59,3.35855988]
[1773616496791,58.04772758,92.649,92.595,9.717]
[1773616496995,58.04772758,92.649,92.6,3.35855988]
[1773616497694,58.04772758,92.649,92.56,9.45816014]
[1773616497695,9.709,92.669,92.62,3.35855988]
[1773616497892,9.709,92.669,92.554,12.42315154]
[1773616497893,58.04772758,92.685,92.63,3.35855988]
[1773616498093,58.04772758,92.685,92.621,20.52382381]
[1773616498094,58.04772758,92.685,92.64,3.35855988]
[1773616498290,33.94,92.702,92.618,33.94]
[1773616498291,58.04772758,92.701,92.65,3.35855988]
[1773616500298,58.04772758,92.701,92.66,3.35855988]
[1773616500490,58.04772758,92.719,92.68,3.35855988]
[1773616500694,19.394,92.789,92.69,3.35855988]
[1773616500695,58.04772758,92.739,92.69,3.35855988]
[1773616501304,58.04772758,92.739,92.622,12.42315154]
[1773616501305,58.04772758,92.779,92.694,20.10370573]
[1773616501600,58.04772758,92.779,92.72,3.35855988]
[1773616502090,9.696,92.79,92.665,9.45816014]
[1773616502091,58.04772758,92.749,92.7,3.35855988]
[1773616502510,58.04772758,92.739,92.68,3.35855988]
[1773616502898,58.04772758,92.757,92.676,18.35587306]
[1773616504998,58.04772758,92.755,92.676,18.35587306]
[1773616505199,58.04772758,92.749,92.68,9.708]
[1773616505501,58.04772758,92.749,92.68,19.96663746]
[1773616506300,58.04772758,92.749,92.681,19.8473932]
[1773616506692,58.04772758,92.768,92.705,9.705]
[1773616507098,58.04772758,92.768,92.706,19.78384126]
[1773616507299,58.04772758,92.768,92.714,9.704]
[1773616507698,58.04772758,92.768,92.706,19.78384126]
[1773616507899,58.04772758,92.768,92.711,9.705]
[1773616508101,58.04772758,92.768,92.706,19.78384126]
[1773616508604,58.04772758,92.768,92.709,9.705]
[1773616509001,58.04772758,92.768,92.706,19.78384126]
[1773616509707,67.74672758,92.766,92.706,19.78384126]
[1773616510009,58.04772758,92.766,92.708,9.705]
[1773616510998,58.04772758,92.766,92.706,19.78384126]
[1773616511503,58.04772758,92.763,92.687,20.42997104]
[1773616512304,58.04772758,92.763,92.7,21.70224396]
[1773616512505,58.04772758,92.786,92.701,21.70224396]
[1773616513309,7.97397622,92.85,92.723,21.59309753]
[1773616513608,7.97397622,92.85,92.72,7.97397622]
[1773616513609,33.94,92.849,92.741,37.80196832]
[1773616513801,7.97397622,92.87,92.773,37.80196832]
[1773616514007,33.94,92.87,92.773,37.80196832]
[1773616514409,33.94,92.888,92.781,37.49884363]
[1773616515209,33.94,92.888,92.779,33.94]
[1773616515210,7.97397622,92.87,92.779,33.94]
[1773616515413,58.04772758,92.869,92.779,33.94]
[1773616516004,58.04772758,92.869,92.762,37.37886014]
[1773616516204,19.367,92.914,92.753,33.94]
[1773616516205,58.04772758,92.887,92.771,37.63921563]
[1773616516407,58.04772758,92.879,92.771,37.63921563]
[1773616516807,58.04772758,92.876,92.771,37.63921563]
[1773616517107,58.04772758,92.876,92.791,35.65970828]
[1773616517911,58.04772758,92.876,92.811,36.43231541]
[1773616518311,58.04772758,92.876,92.825,9.693]
[1773616519114,58.04772758,92.876,92.813,9.694]
[1773616519313,58.04772758,92.876,92.811,36.43231541]
[1773616519907,58.04772758,92.895,92.811,36.43231541]
[1773616520116,58.04772758,92.895,92.767,19.398]
[1773616520117,58.04772758,92.895,92.821,35.90419177]
[1773616520609,58.04772758,92.895,92.767,19.398]
[1773616520610,58.04772758,92.895,92.801,35.92216629]
[1773616520811,58.04772758,92.889,92.782,35.92216629]
[1773616521013,58.04772758,92.887,92.782,35.92216629]
[1773616521314,58.04772758,92.885,92.782,35.92216629]
[1773616521612,58.04772758,92.866,92.798,36.32344266]
[1773616522310,57.36010072,92.853,92.78,33.92]
[1773616522910,57.36010072,92.85,92.781,9.697]
[1773616523511,57.36010072,92.85,92.781,45.98094269]
[1773616524116,57.36010072,92.85,92.785,36.17791485]
[1773616524816,67.05010072,92.849,92.786,9.697]
[1773616525216,67.05010072,92.849,92.785,36.17791485]
[1773616525511,67.05010072,92.849,92.774,9.698]
[1773616525919,67.05010072,92.849,92.774,45.36803267]
[1773616527415,67.05210072,92.837,92.775,36.18152284]
[1773616527607,57.36010072,92.837,92.777,9.698]
[1773616528215,57.36010072,92.837,92.788,9.696]
[1773616529619,57.36010072,92.863,92.81,9.694]
[1773616529818,57.36010072,92.881,92.807,36.13880585]
[1773616530219,57.36010072,92.869,92.807,45.83380585]
[1773616530416,57.36010072,92.869,92.799,33.92]
[1773616530620,57.36010072,92.857,92.795,9.696]
[1773616530818,57.36010072,92.857,92.761,36.42642358]
[1773616531116,57.36010072,92.857,92.763,36.42642358]
[1773616531319,57.36010072,92.855,92.763,36.42642358]
[1773616531517,57.36010072,92.855,92.771,41.71274018]
[1773616531719,19.362,92.938,92.754,19.401]
[1773616531720,33.92,92.896,92.791,41.71274018]
[1773616531916,57.36010072,92.88,92.81,9.694]
[1773616533515,9.687,92.879,92.81,9.694]
[1773616533821,57.36010072,92.878,92.81,9.694]
[1773616534525,57.36010072,92.874,92.81,9.694]
[1773616535526,57.36010072,92.872,92.81,9.694]
[1773616536419,57.36010072,92.869,92.799,9.695]
[1773616536821,57.36010072,92.869,92.779,33.92]
[1773616537124,57.36010072,92.843,92.774,39.27836999]
[1773616539023,57.36010072,92.843,92.796,9.696]
[1773616540425,57.36010072,92.843,92.774,39.27836999]
[1773616540426,57.36010072,92.843,92.786,47.48085593]
[1773616540626,57.36010072,92.843,92.786,9.697]
[1773616540928,57.36010072,92.843,92.772,33.92]
[1773616541135,57.36010072,92.843,92.773,37.69786366]
[1773616542628,57.36010072,92.843,92.79,9.696]
[1773616543928,57.36010072,92.843,92.742,32.43]
[1773616543929,57.36010072,92.87,92.8,45.53865815]
[1773616544232,57.36010072,92.87,92.802,37.4975916]
[1773616544725,33.92,92.896,92.805,9.695]
[1773616544726,57.36010072,92.86,92.805,9.695]
[1773616545128,57.36010072,92.86,92.803,9.695]
[1773616545724,57.36010072,92.86,92.794,33.92]
[1773616545725,57.36010072,92.858,92.794,33.92]
[1773616546326,57.36010072,92.845,92.786,9.697]
[1773616547625,67.05110072,92.845,92.786,9.697]
[1773616549124,57.36010072,92.836,92.786,9.697]
[1773616549725,57.36010072,92.834,92.78,33.92]
[1773616549932,57.36010072,92.834,92.762,33.92]
[1773616551235,9.693,92.819,92.762,33.92]
[1773616551530,9.692,92.828,92.763,9.699]
[1773616551834,57.36010072,92.827,92.762,33.92]
[1773616552236,53.32731423,92.816,92.762,33.92]
[1773616552433,53.32731423,92.841,92.763,37.78135137]
[1773616552732,53.32731423,92.841,92.765,37.78135137]
[1773616552929,53.32731423,92.841,92.792,9.696]
[1773616553627,53.32731423,92.841,92.785,33.92]
[1773616553935,53.32731423,92.841,92.785,72.37501747]
[1773616554827,7.95758107,92.89,92.785,72.37501747]
[1773616554828,9.689,92.858,92.798,9.695]
[1773616555046,55.88428825,92.857,92.798,9.695]
[1773616555938,9.69,92.856,92.798,9.695]
[1773616556544,65.57428825,92.856,92.798,43.615]
[1773616557342,65.57528825,92.847,92.786,48.0192066]
[1773616557544,65.57528825,92.847,92.786,72.48104646]
[1773616557946,55.88428825,92.847,92.789,36.71026971]
[1773616558144,55.88428825,92.847,92.8,9.45816014]
[1773616558648,55.88428825,92.847,92.8,9.55733452]
[1773616560053,55.88428825,92.847,92.812,9.694]
[1773616560252,55.88428825,92.847,92.8,9.55733452]
[1773616560448,33.92,92.874,92.823,36.57007404]
[1773616560648,64.03431168,92.873,92.809,9.55733452]
[1773616560850,20.59705189,92.926,92.798,36.57007404]
[1773616560851,55.88428825,92.871,92.798,9.55733452]
[1773616561049,55.88428825,92.869,92.788,9.55733452]
[1773616561246,55.88428825,92.867,92.788,9.55733452]
[1773616561544,55.88428825,92.867,92.821,9.693]
[1773616561847,55.88428825,92.867,92.78,7.95758107]
[1773616561848,55.88428825,92.867,92.8,36.54177574]
[1773616562051,55.88428825,92.867,92.802,36.47457536]
[1773616562248,55.88428825,92.867,92.842,9.691]
[1773616562453,55.88428825,92.885,92.842,9.691]
[1773616562656,55.88428825,92.885,92.821,36.25965185]
[1773616562950,55.88428825,92.885,92.826,36.25965185]
[1773616563148,55.88428825,92.929,92.871,9.688]
[1773616563355,55.88428825,92.929,92.846,36.63791333]
[1773616563553,55.88428825,92.929,92.851,9.55307621]
[1773616563754,55.88428825,92.929,92.847,36.63791333]
[1773616563755,55.88428825,92.929,92.888,9.686]
[1773616564155,55.88428825,92.929,92.866,33.92]
[1773616564349,55.88428825,92.929,92.878,9.687]
[1773616564651,55.88428825,92.929,92.866,33.92]
[1773616564850,55.88428825,92.929,92.856,36.91230192]
[1773616565045,55.88428825,92.929,92.858,36.8471218]
[1773616565950,55.88428825,92.929,92.854,33.92]
[1773616566147,55.88428825,92.929,92.855,36.8301332]
[1773616566552,55.88428825,92.929,92.895,9.685]
[1773616567254,55.88428825,92.929,92.855,36.8301332]
[1773616567255,55.88428825,92.929,92.885,9.686]
[1773616567657,55.88428825,92.929,92.858,72.13068477]
[1773616567856,55.88428825,92.929,92.859,38.21068477]
[1773616569446,55.88428825,92.929,92.896,9.685]
[1773616569656,55.88428825,92.964,92.881,38.26147044]
[1773616570860,55.88428825,92.964,92.899,38.19145077]
[1773616571052,55.88428825,92.964,92.9,33.9]
[1773616571253,55.88428825,92.964,92.868,32.43]
[1773616571254,55.88428825,92.964,92.892,9.686]
[1773616571551,55.88428825,92.964,92.89,7.95758107]
[1773616571750,55.88428825,92.964,92.892,38.15835452]
[1773616572755,55.88428825,92.964,92.923,9.682]
[1773616572953,55.88428825,92.982,92.923,9.682]
[1773616573153,55.88428825,92.982,92.909,38.08119121]
[1773616573154,55.88428825,92.982,92.924,33.9]
[1773616573653,55.88428825,92.982,92.876,9.55307621]
[1773616573654,55.88428825,92.982,92.889,37.86829101]
[1773616573859,55.88428825,92.982,92.89,33.9]
[1773616574160,55.88428825,92.971,92.894,9.685]
[1773616574656,55.88428825,92.969,92.894,9.685]
[1773616574858,55.88428825,92.969,92.905,9.684]
[1773616575353,55.88428825,92.969,92.89,33.9]
[1773616575354,55.88428825,92.969,92.891,51.28047397]
[1773616575856,55.88428825,92.969,92.914,9.683]
[1773616576754,55.88428825,92.969,92.915,51.28047397]
[1773616577061,55.88428825,92.998,92.915,51.28047397]
[1773616577352,55.88428825,92.998,92.939,9.681]
[1773616579660,55.88428825,92.998,92.936,33.9]
[1773616580559,55.88428825,92.998,92.937,51.28047397]
[1773616580757,55.88428825,92.998,92.956,9.679]
[1773616581861,55.88428825,92.998,92.937,51.28047397]
[1773616583562,55.88428825,92.998,92.953,9.679]
[1773616583864,51.52593657,93.009,92.937,51.28047397]
[1773616585258,51.52593657,93.079,92.981,53.78472197]
[1773616585459,51.52593657,93.076,92.998,9.675]
[1773616586663,51.52593657,93.069,92.998,9.675]
[1773616586862,51.52593657,93.068,92.998,9.675]
[1773616587959,51.52593657,93.066,92.994,33.88]
[1773616588756,51.52593657,93.06,92.998,9.675]
[1773616588955,51.52593657,93.06,92.994,33.88]
[1773616589466,51.52593657,93.029,92.947,33.88]
[1773616589662,51.52593657,93.027,92.948,53.78472197]
[1773616590064,51.52593657,93.027,92.93,53.78472197]
[1773616590264,51.52593657,93.009,92.93,53.78472197]
[1773616590464,51.52593657,93.004,92.931,9.682]
[1773616591665,51.52593657,92.999,92.931,9.682]
[1773616591861,51.52593657,93.055,92.93,53.78472197]
[1773616592064,19.331,93.087,92.93,53.78472197]
[1773616592065,51.52593657,93.049,92.93,53.78472197]
[1773616592266,51.52593657,93.047,92.93,53.78472197]
[1773616592465,7.92230673,93.05,92.957,53.78472197]
[1773616592466,51.52593657,93.032,92.957,53.78472197]
[1773616594068,61.19793657,93.029,92.962,9.678]
[1773616594271,61.19793657,93.029,92.963,33.86]
[1773616595073,51.52593657,93.029,92.963,33.86]
[1773616595272,51.52593657,93.053,92.964,53.78472197]
[1773616595464,51.52593657,93.053,92.993,9.675]
[1773616595961,51.52593657,93.053,92.97,53.78472197]
[1773616596165,51.52593657,93.053,92.983,9.676]
[1773616596166,9.67,93.041,92.983,9.676]
[1773616596364,51.52593657,93.04,92.978,33.86]
[1773616596762,9.672,93.029,92.978,33.86]
[1773616596968,51.52593657,93.04,92.978,33.86]
[1773616597972,9.671,93.038,92.979,53.78472197]
[1773616598863,9.671,93.038,92.979,63.46172197]
[1773616600867,61.19693657,93.038,92.979,53.78472197]
[1773616601469,9.669,93.051,92.979,53.78472197]
[1773616601676,51.52593657,93.064,92.979,53.78472197]
[1773616601975,51.52593657,93.06,92.979,53.78472197]
[1773616602769,51.52593657,93.06,92.991,9.675]
[1773616603368,61.19693657,93.036,92.979,53.78472197]
[1773616603574,61.19693657,93.036,92.978,33.86]
[1773616603575,51.52593657,93.036,92.978,33.86]
[1773616603770,51.52593657,93.025,92.978,33.86]
[1773616604468,61.19793657,93.025,92.978,33.86]
[1773616605467,33.86,93.066,92.954,33.86]
[1773616605468,51.52593657,93.015,92.954,33.86]
[1773616605674,51.52593657,93.015,92.941,53.78472197]
[1773616606477,51.52593657,92.997,92.935,33.86]
[1773616606969,61.20193657,92.988,92.936,9.681]
[1773616607168,51.52593657,93.035,92.936,53.78472197]
[1773616607370,51.52593657,93.016,92.936,53.78472197]
[1773616608672,9.675,92.999,92.944,9.68]
[1773616608972,51.52593657,93.016,92.945,53.78472197]
[1773616609378,51.52593657,93.046,92.945,53.78472197]
[1773616610179,9.671,93.037,92.977,9.677]
[1773616610478,61.19693657,93.037,92.977,9.677]
[1773616610778,9.672,93.028,92.977,9.677]
[1773616610981,51.52593657,93.037,92.971,87.64472197]
[1773616611179,51.52593657,93.037,92.971,53.78472197]